bitfinex/quotes_SOLUSD_20250817
["timestamp","ask_amount","ask_price","bid_price","bid_amount"]
[1755400856066,51.68980645,191.0,190.99,0.72]
[1755400856371,51.68980645,191.0,190.99,0.03]
[1755400857069,66.80767848,191.0,190.99,0.03]
[1755400857276,26.0,190.92,190.91,2.73140455]
[1755400857469,73.30076328,190.92,190.91,0.69]
[1755400857780,7.41851997,190.92,190.91,0.69]
[1755400858473,4.40437672,190.98,190.91,9.0903136]
[1755400858659,3.52247555,190.97,190.94,3.16224331]
[1755400858860,3.52247555,190.96,190.94,3.16224331]
[1755400859160,3.52247555,190.95,190.93,3.16224331]
[1755400859370,3.52247555,190.94,190.93,3.16224331]
[1755400860579,3.52247555,190.94,190.91,8.4003136]
[1755400860873,3.52247555,190.93,190.91,8.4003136]
[1755400861079,3.16224331,190.97,190.91,8.4003136]
[1755400861080,8.39869249,190.97,190.91,8.4003136]
[1755400861277,3.52362233,190.96,190.91,8.4003136]
[1755400861573,3.52362233,190.95,190.91,8.4003136]
[1755400861879,3.52362233,190.94,190.91,8.4003136]
[1755400862051,3.52362233,190.93,190.91,8.4003136]
[1755400862260,3.16224331,190.97,190.91,8.4003136]
[1755400862473,3.52529956,190.96,190.91,8.4003136]
[1755400862776,3.52529956,190.95,190.91,8.4303136]
[1755400862977,3.52529956,190.94,190.91,8.4303136]
[1755400863180,3.52529956,190.93,190.91,8.4303136]
[1755400863383,8.39867721,190.97,190.91,8.4303136]
[1755400863584,6.6874264,190.96,190.91,5.26807029]
[1755400863761,3.52518309,190.95,190.91,0.03]
[1755400864079,3.52518309,190.94,190.91,3.19224331]
[1755400864255,3.52518309,190.93,190.91,3.19224331]
[1755400864459,3.16224331,190.97,190.91,3.19224331]
[1755400864766,3.52504338,190.96,190.91,3.19224331]
[1755400864978,3.52504338,190.95,190.91,0.03]
[1755400865162,3.52504338,190.94,190.91,0.03]
[1755400865467,3.52504338,190.93,190.91,0.03]
[1755400865667,3.16224331,190.96,190.91,0.03]
[1755400865868,3.52489707,190.95,190.91,0.03]
[1755400866066,3.52489707,190.94,190.91,3.19224331]
[1755400866268,3.52489707,190.93,190.91,8.43030611]
[1755400866469,9.10871271,190.97,190.91,8.43030611]
[1755400866779,3.52478926,190.96,190.91,8.43030611]
[1755400866984,3.52478926,190.95,190.91,8.43030611]
[1755400867157,3.52478926,190.94,190.91,8.43030611]
[1755400867360,3.52478926,190.93,190.91,8.43030611]
[1755400867559,5.9464694,190.97,190.91,8.43030611]
[1755400867872,3.52471938,190.96,190.91,8.43030611]
[1755400868180,3.52471938,190.95,190.91,8.43030611]
[1755400868382,3.52471938,190.94,190.91,8.43030611]
[1755400868564,3.52471938,190.93,190.91,8.43030611]
[1755400868764,5.9464694,190.97,190.91,8.43030611]
[1755400868981,3.52468486,190.96,190.91,8.43030611]
[1755400869182,3.52468486,190.95,190.91,8.43030611]
[1755400869387,3.52468486,190.94,190.91,8.43030611]
[1755400869573,3.52468486,190.93,190.91,8.43030611]
[1755400869774,5.9464694,190.97,190.91,8.43030611]
[1755400869968,3.52468867,190.96,190.91,8.43030611]
[1755400870166,3.52468867,190.95,190.91,8.43030611]
[1755400870367,3.52468867,190.94,190.91,8.43030611]
[1755400870588,3.52468867,190.93,190.92,3.16224331]
[1755400871378,3.52468867,190.93,190.91,8.43030611]
[1755400871692,3.52485062,190.92,190.91,3.19224331]
[1755400872700,3.52485062,190.92,190.91,2.05917161]
[1755400874197,3.52485062,190.92,190.91,0.03]
[1755400874399,4.22485062,190.92,190.91,0.03]
[1755400875193,8.14235135,190.92,190.91,0.03]
[1755400876476,4.22485062,190.92,190.91,0.03]
[1755400876672,8.14266587,190.92,190.91,0.03]
[1755400876872,7.44266587,190.92,190.91,0.03]
[1755400877177,3.52485062,190.92,190.91,0.03]
[1755400878482,7.44362927,190.92,190.91,0.03]
[1755400880105,3.52485062,190.92,190.91,0.03]
[1755400881217,7.44476261,190.92,190.91,0.03]
[1755400883388,7.41857363,190.92,190.91,0.03]
[1755400885798,8.11857363,190.92,190.91,0.03]
[1755400887526,7.41857363,190.92,190.91,3.20085947]
[1755400888031,8.11857363,190.92,190.91,3.20085947]
[1755400888203,8.11857363,190.92,190.91,0.03]
[1755400888600,8.12262966,190.92,190.91,0.03]
[1755400895807,7.42262966,190.92,190.91,3.20085947]
[1755400897320,8.12262966,190.92,190.91,3.20085947]
[1755400897525,4.19866164,190.92,190.91,3.20085947]
[1755400897703,8.12453159,190.92,190.91,3.20085947]
[1755400898036,8.15911299,190.92,190.91,3.20085947]
[1755400898215,8.15935947,190.92,190.91,3.20085947]
[1755400898408,8.15941079,190.92,190.91,0.03]
[1755400900716,7.45941079,190.92,190.91,2.05960372]
[1755400901113,8.15941079,190.92,190.91,0.03]
[1755400903818,8.16098246,190.92,190.91,0.03]
[1755400904631,10.19058618,190.92,190.91,0.03]
[1755400904931,7.26767401,190.91,190.9,0.2]
[1755400905131,7.26767401,190.91,190.89,0.03]
[1755400905132,16.74499257,190.91,190.89,0.03]
[1755400905345,10.17058618,190.9,190.89,0.03]
[1755400906814,10.16840912,190.9,190.89,0.03]
[1755400907016,15.4067538,190.9,190.89,0.03]
[1755400909728,15.40399737,190.9,190.89,0.03]
[1755400913654,15.46399737,190.9,190.89,0.03]
[1755400915522,15.46094423,190.9,190.89,0.03]
[1755400916158,56.5671598,190.9,190.89,0.03]
[1755400916452,79.49373114,190.9,190.89,0.03]
[1755400916744,82.22641014,190.9,190.89,0.03]
[1755400917227,80.89362323,190.9,190.89,0.03]
[1755400918751,80.89118808,190.9,190.89,0.03]
[1755400919126,85.29808472,190.9,190.89,0.03]
[1755400919326,80.89118808,190.9,190.89,0.03]
[1755400919624,8.19056068,190.9,190.89,0.03]
[1755400921235,15.45850908,190.9,190.89,0.03]
[1755400932467,15.45705999,190.9,190.89,0.03]
[1755400933755,52.15705999,190.9,190.89,0.03]
[1755400935371,52.15790582,190.9,190.89,0.03]
[1755400941272,52.16082211,190.9,190.89,0.03]
[1755400942161,53.49393575,190.9,190.87,0.03]
[1755400942348,14.59372534,190.89,190.87,0.03]
[1755400942550,7.45287371,190.88,190.87,0.03]
[1755400945072,9.48247743,190.88,190.87,0.03]
[1755400945274,13.89372534,190.88,190.87,0.03]
[1755400947175,13.89316483,190.88,190.87,0.03]
[1755400947373,13.89707447,190.88,190.87,0.03]
[1755400947774,14.59707447,190.88,190.87,0.03]
[1755400950280,12.56747075,190.88,190.87,0.03]
[1755400951464,19.83596801,190.88,190.87,0.03]
[1755400951866,19.83596801,190.88,190.83,2.76265167]
[1755400951867,26.0,190.85,190.83,0.03]
[1755400952174,10.81890501,190.84,190.83,0.03]
[1755400952375,16.05889662,190.84,190.83,0.03]
[1755400952573,16.75889662,190.84,190.83,0.03]
[1755400952772,16.76048241,190.84,190.83,0.03]
[1755400953687,56.53902038,190.84,190.83,0.03]
[1755400955093,52.12535718,190.84,190.83,0.03]
[1755400955396,100.45522499,190.84,190.83,0.03]
[1755400955766,41.37941409,190.84,190.83,0.03]
[1755400955974,37.86612992,190.84,190.83,0.03]
[1755400956201,11.86612992,190.84,190.83,0.03]
[1755400956362,7.45576185,190.84,190.83,2.11960372]
[1755400956564,7.45576185,190.84,190.83,0.03]
[1755400959266,7.44966095,190.84,190.83,0.03]
[1755400959466,8.14966095,190.84,190.83,0.03]
[1755400959663,20.97416067,190.84,190.83,0.03]
[1755400959891,20.9740027,190.84,190.83,0.03]
[1755400960098,3.17414004,190.81,190.75,45.11635233]
[1755400960281,13.38976047,190.84,190.75,45.11635233]
[1755400960282,3.17414004,190.79,190.75,36.7]
[1755400960479,7.44976886,190.78,190.74,1.65831338]
[1755400960679,3.53063575,190.77,190.74,1.65831338]
[1755400960996,39.87414004,190.8,190.75,0.06]
[1755400961175,7.44428344,190.79,190.75,0.06]
[1755400961498,7.44428344,190.78,190.75,0.06]
[1755400961695,3.52592421,190.77,190.75,0.06]
[1755400961894,0.7,190.79,190.74,4.77245342]
[1755400962084,7.44139917,190.78,190.74,4.83245342]
[1755400962283,3.52465511,190.77,190.74,10.07509429]
[1755400962485,0.7,190.79,190.74,10.07509429]
[1755400962691,7.43839466,190.78,190.74,10.07509429]
[1755400962883,3.52325566,190.77,190.74,10.01509429]
[1755400963081,0.7,190.78,190.74,10.01509429]
[1755400963284,3.52309563,190.77,190.74,10.01509429]
[1755400963581,0.7,190.78,190.74,10.01509429]
[1755400963907,3.5220069,190.77,190.74,10.01509429]
[1755400964094,0.7,190.78,190.74,10.01509429]
[1755400964400,3.521789,190.77,190.74,10.01509429]
[1755400964587,0.7,190.78,190.74,10.01509429]
[1755400964901,3.52085836,190.77,190.74,10.01509429]
[1755400965077,0.7,190.78,190.74,10.01509429]
[1755400965276,3.52085867,190.77,190.74,10.01509429]
[1755400965478,0.7,190.78,190.74,10.01509429]
[1755400965675,3.52005491,190.77,190.74,10.01509429]
[1755400965895,0.7,190.78,190.74,10.01509429]
[1755400966077,3.52005491,190.77,190.74,10.01509429]
[1755400966397,0.7,190.78,190.74,10.01509429]
[1755400966600,3.87414004,190.78,190.73,5.2429806]
[1755400966800,0.69,190.78,190.73,8.47712064]
[1755400967094,3.17414004,190.79,190.74,3.23414004]
[1755400967396,3.17414004,190.79,190.77,3.17414004]
[1755400967397,3.51850158,190.79,190.77,3.17414004]
[1755400967574,3.51850158,190.81,190.77,3.23414004]
[1755400967775,37.39,190.82,190.77,3.23414004]
[1755400967776,3.51850158,190.8,190.77,3.23414004]
[1755400967977,3.51850158,190.79,190.77,3.23414004]
[1755400968174,3.51850158,190.81,190.77,3.17414004]
[1755400968495,3.51850158,190.8,190.77,3.17414004]
[1755400968676,0.69,190.81,190.77,3.17414004]
[1755400968878,3.51828512,190.8,190.77,3.17414004]
[1755400969077,0.69,190.81,190.77,3.17414004]
[1755400969278,3.51828512,190.8,190.77,3.17414004]
[1755400969575,0.69,190.84,190.79,3.17414004]
[1755400969774,7.42675769,190.83,190.81,3.17414004]
[1755400969979,3.51784442,190.82,190.81,3.17414004]
[1755400971400,3.51784442,190.82,190.79,5.24120953]
[1755400971401,3.51784442,190.82,190.8,3.17414004]
[1755400971607,3.51784442,190.83,190.8,3.17414004]
[1755400971897,0.69,190.84,190.8,3.17414004]
[1755400972073,3.51775891,190.83,190.8,3.17414004]
[1755400972275,0.69,190.84,190.8,3.17414004]
[1755400972498,3.51799866,190.83,190.8,3.17414004]
[1755400972708,0.69,190.84,190.78,0.06]
[1755400972886,3.51799927,190.83,190.8,3.17414004]
[1755400973086,0.69,190.84,190.8,3.17414004]
[1755400973286,4.20799866,190.83,190.8,3.17414004]
[1755400973506,0.69,190.83,190.8,3.17414004]
[1755400974213,37.39,190.85,190.8,3.17414004]
[1755400974512,8.11796029,190.84,190.8,3.17414004]
[1755400974677,4.20854682,190.83,190.8,3.17414004]
[1755400974883,0.69,190.83,190.8,3.17414004]
[1755400975679,37.39,190.85,190.8,3.17414004]
[1755400975884,8.11886856,190.84,190.81,3.17414004]
[1755400976111,3.51885584,190.83,190.81,3.17414004]
[1755400976399,0.69,190.84,190.81,3.17414004]
[1755400976601,3.51919021,190.83,190.81,3.17414004]
[1755400976780,0.69,190.84,190.81,3.17414004]
[1755400976980,3.51919052,190.83,190.81,3.17414004]
[1755400977207,0.69,190.84,190.81,3.17414004]
[1755400977415,3.51919052,190.83,190.81,3.17414004]
[1755400977620,0.69,190.84,190.81,3.17414004]
[1755400977819,4.20955177,190.83,190.81,3.17414004]
[1755400978001,0.69,190.83,190.81,3.17414004]
[1755400978420,3.5199421,190.82,190.81,3.17414004]
[1755400981621,3.5199421,190.82,190.78,0.06]
[1755400981829,0.75,190.83,190.81,3.17414004]
[1755400982017,3.52107557,190.82,190.81,3.17414004]
[1755400983304,3.52107557,190.82,190.79,5.241236]
[1755400983504,0.69,190.81,190.8,3.17414004]
[1755400984333,0.69,190.81,190.77,5.24191434]
[1755400984501,0.69,190.81,190.8,3.17414004]
[1755400984824,4.21301978,190.81,190.8,3.17414004]
[1755400985632,0.69,190.81,190.8,3.17414004]
[1755400985808,0.69,190.81,190.79,3.17414004]
[1755400988650,0.69,190.81,190.77,5.24191434]
[1755400988810,0.69,190.81,190.79,3.17414004]
[1755400989735,0.69,190.8,190.76,36.7]
[1755400990033,3.86414004,190.8,190.76,36.7]
[1755400990330,4.21585926,190.79,190.74,8.00579624]
[1755400990511,4.21585926,190.78,190.74,8.00579624]
[1755400990714,0.69,190.77,190.74,8.00579624]
[1755400991420,0.69,190.77,190.74,11.17993628]
[1755400995241,0.67,190.78,190.74,8.06579624]
[1755400995443,3.52940544,190.77,190.76,3.17414004]
[1755400996224,3.52940544,190.77,190.75,3.17414004]
[1755400996426,3.52940544,190.76,190.75,3.17414004]
[1755400998037,3.52940544,190.76,190.75,8.41660399]
[1755400998555,4.19940544,190.76,190.75,8.41660399]
[1755400999426,3.52940544,190.76,190.75,8.41660399]
[1755401000157,4.19940544,190.76,190.75,8.41660399]
[1755401000828,3.52940544,190.76,190.75,8.41660399]
[1755401001525,3.52940544,190.76,190.75,5.24246395]
[1755401001733,4.19940544,190.76,190.75,8.41660399]
[1755401002329,3.52940544,190.76,190.75,8.41660399]
[1755401005263,4.19940544,190.76,190.75,8.41660399]
[1755401006658,4.19940544,190.76,190.75,7.27497315]
[1755401007237,4.19940544,190.76,190.75,5.24246395]
[1755401007654,4.19940544,190.76,190.75,7.27497315]
[1755401011263,15.39643767,190.76,190.74,2.76391711]
[1755401011459,10.15417587,190.75,190.74,2.76391711]
[1755401011868,8.12166667,190.75,190.74,2.76391711]
[1755401012480,8.12166667,190.75,190.74,0.03]
[1755401013088,8.12123527,190.75,190.74,0.03]
[1755401013596,41.10621557,190.73,190.68,0.03]
[1755401013759,4.41166301,190.69,190.65,3.1769873]
[1755401013959,8.12123527,190.68,190.66,3.1769873]
[1755401014174,4.19940544,190.67,190.66,3.1769873]
[1755401014373,3.52940544,190.67,190.66,3.1769873]
[1755401014873,33.58865031,190.73,190.66,3.1769873]
[1755401015182,33.58865031,190.73,190.64,36.83]
[1755401015183,9.44485712,190.72,190.64,36.83]
[1755401015380,8.11393955,190.71,190.67,3.1769873]
[1755401015586,7.44393955,190.7,190.67,3.1769873]
[1755401015765,3.5260119,190.69,190.67,3.1769873]
[1755401015964,3.5260119,190.68,190.64,36.83]
[1755401016187,0.67,190.7,190.67,3.1769873]
[1755401016361,3.52267886,190.69,190.68,3.1769873]
[1755401016867,4.19267886,190.69,190.68,3.1769873]
[1755401017366,4.19267886,190.69,190.67,3.1769873]
[1755401017691,0.67,190.71,190.68,3.1769873]
[1755401017877,4.19138396,190.7,190.66,5.24489083]
[1755401018080,3.52138396,190.69,190.67,3.1769873]
[1755401018264,0.67,190.69,190.67,3.1769873]
[1755401018698,26.0,190.76,190.66,5.24489083]
[1755401018699,3.52011487,190.71,190.68,40.0069873]
[1755401018887,4.18971884,190.75,190.7,3.1769873]
[1755401019085,3.51971884,190.74,190.72,3.1769873]
[1755401019268,3.51971884,190.73,190.72,3.1769873]
[1755401019791,0.67,190.79,190.73,5.24301368]
[1755401019962,3.51862903,190.78,190.76,3.1769873]
[1755401020274,0.67,190.78,190.76,3.1769873]
[1755401020470,3.90982283,190.8,190.77,3.1769873]
[1755401020671,3.90982283,190.8,190.73,5.24301368]
[1755401020672,3.1769873,190.78,190.7,3.1769873]
[1755401020866,3.1769873,190.78,190.69,39.8569873]
[1755401020867,3.1769873,190.75,190.69,39.8569873]
[1755401021187,4.18887414,190.74,190.69,39.8569873]
[1755401021383,4.18887414,190.73,190.69,39.8569873]
[1755401021593,3.1769873,190.74,190.69,39.8569873]
[1755401021794,0.67,190.72,190.69,39.8569873]
[1755401022169,3.1769873,190.75,190.69,39.8569873]
[1755401022378,0.67,190.71,190.69,39.8569873]
[1755401022573,4.18967061,190.73,190.69,39.8569873]
[1755401022769,0.67,190.73,190.69,45.10093833]
[1755401023168,3.1769873,190.75,190.69,45.10093833]
[1755401023368,0.67,190.72,190.69,45.10093833]
[1755401023590,0.67,190.72,190.69,41.92395103]
[1755401023888,3.1769873,190.75,190.69,36.68]
[1755401023889,0.67,190.71,190.69,36.68]
[1755401024187,0.67,190.7,190.68,8.42133384]
[1755401024387,0.67,190.7,190.68,36.74]
[1755401024612,4.22997287,190.72,190.68,36.74]
[1755401024767,3.1769873,190.73,190.68,36.74]
[1755401024973,4.22997194,190.72,190.68,36.74]
[1755401025169,0.71,190.71,190.68,36.74]
[1755401025479,0.71,190.71,190.68,41.98425195]
[1755401025873,0.71,190.71,190.68,45.16123925]
[1755401026072,0.71,190.7,190.68,45.16123925]
[1755401026277,0.71,190.7,190.68,41.98425195]
[1755401026575,3.51984156,190.72,190.68,41.98425195]
[1755401026576,0.71,190.72,190.68,41.98425195]
[1755401026801,3.1769873,190.73,190.68,45.16123925]
[1755401026974,3.51994209,190.72,190.69,3.1769873]
[1755401027191,3.8869873,190.74,190.69,3.1769873]
[1755401027506,7.40710666,190.73,190.68,45.16123925]
[1755401027677,3.52011936,190.72,190.68,45.16123925]
[1755401027878,0.71,190.71,190.68,45.16123925]
[1755401028773,3.8869873,190.73,190.68,45.16123925]
[1755401028998,3.52037114,190.72,190.68,45.16123925]
[1755401029203,0.71,190.72,190.68,45.16123925]
[1755401030785,0.71,190.72,190.68,41.98425195]
[1755401031007,0.71,190.72,190.68,45.16123925]
[1755401031197,4.23093166,190.71,190.68,45.16123925]
[1755401031400,0.53804789,190.71,190.68,45.16123925]
[1755401032097,3.1769873,190.74,190.68,45.49123925]
[1755401032300,3.52126889,190.73,190.69,3.1769873]
[1755401032498,3.52126889,190.72,190.69,3.1769873]
[1755401032695,3.1769873,190.74,190.69,3.1769873]
[1755401032913,6.69863226,190.73,190.68,45.16123925]
[1755401033121,3.52164496,190.72,190.68,45.16123925]
[1755401033291,3.52164496,190.71,190.68,45.16123925]
[1755401033494,0.71,190.71,190.68,45.16123925]
[1755401035120,3.1769873,190.73,190.68,45.16123925]
[1755401035417,4.23308409,190.72,190.68,45.16123925]
[1755401035723,4.23308409,190.71,190.68,45.16123925]
[1755401035933,0.71,190.71,190.68,45.16123925]
[1755401036633,3.1769873,190.73,190.68,45.16123925]
[1755401036800,0.71,190.71,190.68,45.16123925]
[1755401037554,0.71,190.71,190.68,8.42123925]
[1755401037764,0.71,190.71,190.69,36.72]
[1755401038466,3.8869873,190.75,190.69,45.4710441]
[1755401038756,7.43915964,190.74,190.69,45.4710441]
[1755401038961,7.43915964,190.73,190.69,45.4710441]
[1755401039137,3.52381481,190.72,190.69,45.4710441]
[1755401039338,3.52381481,190.71,190.69,45.4710441]
[1755401039659,0.71,190.74,190.69,45.4710441]
[1755401039857,8.14989428,190.73,190.69,45.4710441]
[1755401040026,3.52416327,190.72,190.69,45.4710441]
[1755401040238,3.52416327,190.71,190.69,45.4710441]
[1755401040556,0.71,190.73,190.69,45.4710441]
[1755401040723,3.52424045,190.72,190.71,3.1769873]
[1755401040924,0.71,190.76,190.71,40.2069873]
[1755401041149,8.14925902,190.75,190.71,39.8769873]
[1755401041348,3.52386146,190.74,190.71,39.8769873]
[1755401041540,3.52386146,190.73,190.71,39.8769873]
[1755401041741,0.71,190.75,190.71,39.8769873]
[1755401041941,3.52422235,190.74,190.71,45.1203284]
[1755401042270,3.52422235,190.73,190.71,45.1203284]
[1755401042434,3.52422235,190.72,190.71,41.9433411]
[1755401044057,3.52422235,190.72,190.71,36.7]
[1755401044238,4.23422235,190.72,190.71,36.7]
[1755401044438,4.23422235,190.72,190.7,5.24383195]
[1755401044634,0.71,190.72,190.71,36.68]
[1755401044836,4.23560515,190.72,190.71,36.68]
[1755401045646,4.23560515,190.72,190.71,36.71]
[1755401045962,3.52560515,190.72,190.71,36.71]
[1755401046136,3.52595563,190.72,190.71,41.95353595]
[1755401046662,3.52595563,190.72,190.71,45.13052325]
[1755401046834,0.06,190.74,190.72,15.10621557]
[1755401047024,0.06,190.74,190.73,54.96320287]
[1755401047224,3.52569901,190.78,190.74,15.10621557]
[1755401047428,0.06,190.8,190.77,3.1769873]
[1755401047631,0.06,190.8,190.79,3.1769873]
[1755401047942,3.58481696,190.8,190.79,3.1769873]
[1755401048140,3.58481696,190.8,190.79,8.41835215]
[1755401050757,3.58481696,190.8,190.79,45.09835215]
[1755401052436,0.06,190.8,190.79,45.09835215]
[1755401055257,0.06,190.8,190.79,45.42835215]
[1755401055984,0.06,190.8,190.79,45.09835215]
[1755401062283,0.74,190.8,190.79,45.09835215]
[1755401063695,0.74,190.8,190.79,45.07835215]
[1755401063873,0.74,190.8,190.79,5.24136485]
[1755401064070,3.9169873,190.8,190.79,36.66]
[1755401064274,0.74,190.8,190.79,36.66]
[1755401076900,4.25698945,190.8,190.79,36.66]
[1755401077601,4.25698945,190.8,190.77,8.41878356]
[1755401077794,0.06,190.8,190.78,36.66]
[1755401077989,0.68,190.79,190.78,36.66]
[1755401079893,0.06,190.8,190.78,36.66]
[1755401080084,0.74,190.8,190.78,36.66]
[1755401081182,3.52121386,190.79,190.77,8.41878356]
[1755401081382,0.74,190.8,190.78,36.66]
[1755401081582,3.5214305,190.79,190.78,41.90163958]
[1755401083007,4.2014305,190.79,190.78,36.66]
[1755401085006,4.2014305,190.79,190.75,8.41933397]
[1755401085310,4.20571623,190.78,190.76,36.66]
[1755401085607,3.52571623,190.77,190.76,36.66]
[1755401085984,4.20571623,190.77,190.76,36.66]
[1755401087902,4.20571623,190.77,190.75,8.41933397]
[1755401088116,3.52571623,190.76,190.75,8.41933397]
[1755401088302,3.52571623,190.76,190.75,45.07933397]
[1755401088988,3.52571623,190.76,190.75,41.90234667]
[1755401089906,3.52571623,190.76,190.75,5.24234667]
[1755401090206,0.68,190.77,190.75,41.90234667]
[1755401090391,7.45451824,190.76,190.75,41.90234667]
[1755401090791,7.45451824,190.76,190.75,5.24234667]
[1755401090998,7.45451824,190.76,190.75,41.90234667]
[1755401091193,7.4542017,190.76,190.75,41.90234667]
[1755401091520,7.45618668,190.76,190.75,41.90234667]
[1755401091819,7.45574768,190.76,190.75,41.90234667]
[1755401094295,7.45475722,190.76,190.75,41.90234667]
[1755401095529,8.13475722,190.76,190.75,41.90234667]
[1755401095993,7.45475722,190.76,190.75,41.90234667]
[1755401096411,3.53030769,190.76,190.75,41.90234667]
[1755401101129,3.53030769,190.76,190.75,43.93495737]
[1755401101956,4.21030769,190.76,190.75,43.93495737]
[1755401102131,4.21030769,190.76,190.75,41.90234667]
[1755401102321,4.21030769,190.76,190.75,43.93495737]
[1755401106224,3.53030769,190.76,190.75,41.90234667]
[1755401106425,7.45398684,190.76,190.75,43.93495737]
[1755401107353,3.53030769,190.76,190.75,43.93495737]
[1755401108456,0.06,190.77,190.75,44.26495737]
[1755401108624,3.53159122,190.76,190.75,42.23234667]
[1755401108828,3.53159122,190.76,190.75,44.26495737]
[1755401109035,3.53159122,190.76,190.75,43.93495737]
[1755401111161,3.53159122,190.76,190.75,44.26495737]
[1755401111737,3.53159122,190.76,190.75,43.93495737]
[1755401112988,3.53159122,190.76,190.75,41.90234667]
[1755401113275,8.1368515,190.76,190.75,41.90234667]
[1755401114172,8.1968515,190.76,190.75,43.93495737]
[1755401116283,8.1968515,190.76,190.75,41.90234667]
[1755401116693,8.1968515,190.76,190.75,36.66]
[1755401117600,8.1968515,190.76,190.75,41.90246395]
[1755401117766,7.5168515,190.76,190.75,43.93507465]
[1755401117957,7.5168515,190.76,190.75,7.27507465]
[1755401118160,7.5168515,190.76,190.75,43.93507465]
[1755401118864,8.1868515,190.76,190.75,38.6926107]
[1755401119064,8.1868515,190.76,190.75,36.66]
[1755401120002,8.1868515,190.76,190.74,7.30529334]
[1755401120295,7.4568515,190.75,190.74,7.30529334]
[1755401120454,7.4568515,190.75,190.74,43.96529334]
[1755401120654,7.4568515,190.75,190.74,7.30529334]
[1755401120880,7.4568515,190.75,190.74,43.96529334]
[1755401122668,7.4568515,190.75,190.74,7.30529334]
[1755401122868,7.4568515,190.75,190.74,43.96529334]
[1755401124298,7.4568515,190.75,190.74,7.30529334]
[1755401124469,7.4568515,190.75,190.74,43.96529334]
[1755401124792,7.46101578,190.75,190.74,41.93268264]
[1755401124970,8.13101578,190.75,190.74,7.30529334]
[1755401125177,8.13101578,190.75,190.74,41.93268264]
[1755401125389,8.13101578,190.75,190.74,43.96529334]
[1755401126187,8.13101578,190.75,190.74,7.30529334]
[1755401126693,8.13101578,190.75,190.74,41.93268264]
[1755401126890,15.91877262,190.75,190.74,0.03]
[1755401128786,21.16123657,190.75,190.74,0.03]
[1755401129389,15.91877262,190.75,190.74,0.03]
[1755401131167,21.16123657,190.75,190.74,0.03]
[1755401131492,16.74154219,190.75,190.72,0.03]
[1755401131674,10.65857245,190.74,190.72,0.03]
[1755401131874,8.79968724,190.73,190.72,0.03]
[1755401132084,9.46968724,190.73,190.72,0.03]
[1755401132388,9.46981135,190.73,190.72,0.03]
[1755401133073,11.50242205,190.73,190.72,0.03]
[1755401133391,8.13484871,190.73,190.72,0.03]
[1755401133595,8.13267705,190.73,190.72,0.03]
[1755401134880,8.13183334,190.73,190.72,0.03]
[1755401139885,11.49739151,190.73,190.72,0.03]
[1755401140092,16.74040519,190.73,190.72,0.03]
[1755401140384,16.74040519,190.73,190.58,5.24690889]
[1755401140385,0.14216157,190.69,190.58,5.24690889]
[1755401140588,2.0326107,190.62,190.57,2.0326107]
[1755401140912,0.67,190.61,190.56,37.08]
[1755401141082,0.67,190.61,190.57,2.0326107]
[1755401141689,0.67,190.6,190.56,44.36027428]
[1755401141886,0.67,190.62,190.58,2.0326107]
[1755401142581,2.0326107,190.64,190.58,2.4826107]
[1755401142788,4.1957985,190.63,190.58,3.63126468]
[1755401142989,0.67,190.63,190.58,3.63126468]
[1755401143190,0.67,190.63,190.56,41.90766358]
[1755401143191,0.67,190.64,190.6,3.18126468]
[1755401143386,3.85126468,190.66,190.61,3.18126468]
[1755401143620,3.52302953,190.65,190.61,3.63126468]
[1755401143919,3.85126468,190.67,190.62,5.24603924]
[1755401144117,3.52283357,190.66,190.62,5.24603924]
[1755401144320,3.18126468,190.67,190.62,5.24603924]
[1755401144527,15.106216,190.68,190.62,5.24603924]
[1755401144528,0.66,190.65,190.62,5.24603924]
[1755401144823,0.66,190.64,190.62,5.24603924]
[1755401145122,0.66,190.64,190.6,5.24658971]
[1755401145418,0.66,190.64,190.6,8.42785439]
[1755401145901,0.66,190.63,190.6,5.24658971]
[1755401146220,3.84126468,190.62,190.57,5.24741564]
[1755401146411,0.66,190.61,190.57,8.42868032]
[1755401146616,3.18126468,190.62,190.57,8.42868032]
[1755401146821,0.66,190.6,190.57,8.42868032]
[1755401147737,3.18126468,190.63,190.57,8.42868032]
[1755401147923,0.66,190.62,190.57,8.42868032]
[1755401148121,3.18126468,190.63,190.57,8.42868032]
[1755401148305,0.66,190.61,190.57,8.42868032]